bitfinex-derivatives/quotes_SOLF0:USTF0_20250413
["timestamp","ask_amount","ask_price","bid_price","bid_amount"]
[1744502402328,0.05302118,132.26,132.19,4.2194]
[1744502402830,0.05302118,132.26,132.2,3.02887235]
[1744502403030,0.05302118,132.26,132.19,4.2194]
[1744502403230,0.05302118,132.26,132.2,3.02904486]
[1744502403426,7.61562118,132.26,132.22,7.5645]
[1744502403628,0.05302118,132.26,132.22,7.5645]
[1744502404633,7.61532118,132.26,132.22,7.5645]
[1744502404829,0.05302118,132.26,132.19,4.2194]
[1744502405032,0.05302118,132.26,132.2,3.0243353]
[1744502405327,0.05302118,132.26,132.21,30.6243353]
[1744502405530,0.05302118,132.26,132.21,27.6]
[1744502406237,0.05302118,132.26,132.23,7.5636]
[1744502406733,0.05302118,132.26,132.21,27.6]
[1744502406936,0.05302118,132.26,132.25,7.5627]
[1744502407126,1.9831,132.32,132.21,27.6]
[1744502407330,52.2731,132.32,132.24,27.6]
[1744502407530,7.5599,132.3,132.26,7.5619]
[1744502408136,7.5606,132.29,132.26,7.5619]
[1744502408437,7.61241583,132.29,132.27,0.05304606]
[1744502408635,0.05181583,132.29,132.27,0.05304606]
[1744502408836,0.05181583,132.29,132.27,27.65304606]
[1744502409038,27.6,132.39,132.34,7.5574]
[1744502409538,7.5558,132.38,132.34,7.5574]
[1744502410037,0.05624668,132.37,132.35,0.05305827]
[1744502411735,7.61224668,132.37,132.35,0.05305827]
[1744502412236,0.05624668,132.37,132.35,0.05305827]
[1744502412438,7.5565,132.36,132.35,0.05305827]
[1744502412938,7.61234668,132.37,132.35,0.05305827]
[1744502413235,0.05624668,132.37,132.35,0.05305827]
[1744502414139,7.61244668,132.37,132.35,0.05305827]
[1744502414833,7.5565,132.36,132.35,0.05305827]
[1744502415041,0.05624668,132.37,132.35,0.05305827]
[1744502415537,7.61224668,132.37,132.35,0.05305827]
[1744502416440,0.05624668,132.37,132.35,0.05305827]
[1744502417744,0.05624668,132.37,132.36,7.5565]
[1744502418040,0.05624668,132.37,132.35,0.05305827]
[1744502418341,0.05624668,132.37,132.35,7.60965827]
[1744502418645,0.05624668,132.37,132.35,0.05305827]
[1744502419543,0.05624668,132.37,132.36,7.5565]
[1744502420549,0.05624668,132.37,132.35,0.05305827]
[1744502422240,7.5565,132.36,132.35,0.05305827]
[1744502424441,27.6,132.36,132.3,27.6]
[1744502424946,7.5582,132.33,132.3,35.1597]
[1744502425146,27.6,132.36,132.3,27.6]
[1744502425448,0.05702385,132.34,132.32,0.05088946]
[1744502426351,7.61482385,132.34,132.32,0.05088946]
[1744502427251,0.05702385,132.34,132.32,0.05088946]
[1744502428354,0.05702385,132.34,132.32,7.60958946]
[1744502428853,0.05702385,132.34,132.33,7.5582]
[1744502429453,0.05702385,132.34,132.32,7.60938946]
[1744502433360,7.61502385,132.34,132.32,0.05088946]
[1744502433559,0.05702385,132.34,132.32,0.05088946]
[1744502434567,7.5582,132.33,132.32,0.05088946]
[1744502435664,35.1582,132.33,132.32,0.05088946]
[1744502442772,7.5612,132.28,132.26,4.0933]
[1744502442968,27.6,132.33,132.26,4.0933]
[1744502443971,0.05157209,132.31,132.26,4.0933]
[1744502444271,7.61127209,132.31,132.28,7.5607]
[1744502445273,0.05157209,132.31,132.26,4.0933]
[1744502446377,7.61137209,132.31,132.27,7.5613]
[1744502447571,7.56,132.3,132.27,7.5613]
[1744502447771,0.05157209,132.31,132.26,11.6552]
[1744502448680,7.5602,132.3,132.26,11.6552]
[1744502449782,7.5606,132.29,132.26,11.6552]
[1744502450283,0.05157209,132.31,132.27,7.5616]
[1744502450681,7.5602,132.3,132.27,7.5616]
[1744502451983,7.5602,132.3,132.27,5.93224817]
[1744502452582,7.5605,132.29,132.26,11.6553]
[1744502452883,27.6,132.3,132.2,35.45083496]
[1744502453086,27.6,132.3,132.22,27.6]
[1744502453281,0.0578529,132.26,132.23,3.02613273]
[1744502453685,0.0578529,132.26,132.24,7.563]
[1744502454085,0.0578529,132.26,132.22,27.6]
[1744502454388,0.0578529,132.26,132.25,7.5627]
[1744502455889,0.0578529,132.26,132.24,7.5633]
[1744502461991,15.107,132.42,132.25,27.6]
[1744502462292,28.9891056,132.41,132.26,27.6]
[1744502462486,1.3891056,132.4,132.27,27.6]
[1744502462698,365.3891056,132.4,132.27,27.6]
[1744502462893,1.3891056,132.39,132.23,27.6]
[1744502463090,7.5603,132.3,132.25,7.5624]
[1744502463397,35.1603,132.3,132.26,0.05467215]
[1744502463594,0.0494073,132.29,132.26,0.05467215]
[1744502464093,7.6099073,132.29,132.26,0.05467215]
[1744502465793,7.6099073,132.29,132.26,7.61677215]
[1744502466393,7.6099073,132.29,132.27,7.17329363]
[1744502466593,7.6099073,132.29,132.26,7.61677215]
[1744502467091,7.6099073,132.29,132.27,7.17356652]
[1744502467393,7.561,132.28,132.26,0.05467215]
[1744502467688,7.5616,132.27,132.26,0.05467215]
[1744502468292,35.1616,132.27,132.26,0.05467215]
[1744502468687,27.6,132.27,132.26,0.05467215]
[1744502469489,27.6,132.27,132.2,27.6]
[1744502469788,27.6,132.27,132.19,35.45083496]
[1744502469984,27.6,132.27,132.2,7.18383497]
[1744502470194,27.6,132.27,132.21,7.18303933]
[1744502470393,27.6,132.27,132.22,7.18303933]
[1744502470593,27.6,132.27,132.19,35.45083496]
[1744502470794,0.05518557,132.26,132.2,7.17877432]
[1744502470994,0.05518557,132.26,132.21,7.17877432]
[1744502471294,0.05518557,132.26,132.22,7.17877432]
[1744502471492,0.05518557,132.26,132.19,35.45083496]
[1744502471692,0.05518557,132.26,132.2,7.17696744]
[1744502471891,0.05518557,132.26,132.21,7.17696744]
[1744502472194,0.05518557,132.26,132.22,7.17696744]
[1744502472393,7.5631,132.25,132.21,7.5648]
[1744502472692,0.05362914,132.25,132.22,7.17660237]
[1744502472892,7.61672914,132.25,132.21,7.5648]
[1744502473094,7.61672914,132.25,132.22,7.1764177]
[1744502473294,7.61672914,132.25,132.21,7.5648]
[1744502473495,7.61672914,132.25,132.22,7.17561414]
[1744502473700,7.61672914,132.25,132.21,7.5648]
[1744502473898,7.61672914,132.25,132.22,7.17543993]
[1744502474100,0.05362914,132.25,132.23,7.17399415]
[1744502474399,0.05362914,132.25,132.24,7.17399415]
[1744502474599,0.05362914,132.25,132.24,14.73729415]
[1744502476100,27.8,132.3,132.26,7.5617]
[1744502476295,27.8,132.3,132.27,7.17302755]
[1744502476496,27.8,132.3,132.26,7.5617]
[1744502476796,27.8,132.3,132.27,7.17351413]
[1744502476997,27.8,132.3,132.25,7.5625]
[1744502477198,7.61842656,132.29,132.26,7.17350155]
[1744502477397,7.61842656,132.29,132.27,7.17350155]
[1744502477598,0.05762656,132.29,132.26,0.05568268]
[1744502477794,7.5616,132.27,132.26,0.05568268]
[1744502478002,35.3416,132.27,132.26,0.05568268]
[1744502478298,35.3416,132.27,132.2,27.78]
[1744502478299,35.34,132.27,132.18,1.9681]
[1744502478500,27.78,132.27,132.19,7.18493694]
[1744502478699,27.78,132.27,132.2,7.18493694]
[1744502478900,27.78,132.27,132.18,7.5664]
[1744502479198,27.78,132.27,132.19,7.18457127]
[1744502479406,0.05707425,132.24,132.16,8.86270876]
[1744502479605,27.78,132.23,132.17,7.18326665]
[1744502479806,0.04956143,132.21,132.18,7.18326665]
[1744502480006,0.04956143,132.21,132.19,7.18435512]
[1744502480208,0.04956143,132.21,132.16,8.86270876]
[1744502480407,7.61476143,132.21,132.17,14.7510534]
[1744502480607,7.61476143,132.21,132.18,7.1839534]
[1744502480906,7.61476143,132.21,132.19,7.1839534]
[1744502481107,7.61476143,132.21,132.17,7.5671]
[1744502481307,7.61476143,132.21,132.18,7.18088511]
[1744502481606,7.61476143,132.21,132.17,7.5671]
[1744502481806,7.61476143,132.21,132.18,7.17989522]
[1744502482108,0.04956143,132.21,132.16,8.86270876]
[1744502482301,0.04956143,132.21,132.17,7.18080161]
[1744502482496,0.04956143,132.21,132.16,8.86270876]
[1744502482701,0.04956143,132.21,132.17,7.17862744]
[1744502482898,7.5658,132.2,132.16,7.5676]
[1744502483103,0.04956143,132.21,132.17,7.17863611]
[1744502483305,0.04956143,132.21,132.16,7.5676]
[1744502483508,7.61466143,132.21,132.17,7.17856707]
[1744502483715,7.61466143,132.21,132.16,7.5676]
[1744502484010,7.61466143,132.21,132.17,7.17955824]
[1744502484210,7.61466143,132.21,132.16,7.5676]
[1744502484411,7.61466143,132.21,132.17,14.74679429]
[1744502484606,7.61466143,132.21,132.17,7.5672]
[1744502484799,7.61466143,132.21,132.15,4.0059]
[1744502484800,7.5657,132.2,132.15,4.0059]
[1744502485007,7.5657,132.2,132.16,14.74641517]
[1744502485202,0.04956143,132.21,132.17,7.17881517]
[1744502485406,0.04956143,132.21,132.18,7.17881517]
[1744502485603,0.04956143,132.21,132.15,4.0059]
[1744502485802,0.04956143,132.21,132.16,7.17568644]
[1744502486006,7.61466143,132.21,132.17,7.17568644]
[1744502486211,7.61466143,132.21,132.18,7.17568644]
[1744502486513,0.04956143,132.21,132.19,7.1743441]
[1744502486712,27.8,132.25,132.2,7.17250519]
[1744502486913,27.8,132.25,132.21,7.17250519]
[1744502487113,27.8,132.25,132.22,14.73660519]
[1744502487413,27.8,132.25,132.22,7.5641]
[1744502488012,27.85370963,132.25,132.22,7.61236215]
[1744502489015,27.85370963,132.25,132.23,7.5637]
[1744502489214,0.05370963,132.25,132.23,7.5637]
[1744502489515,0.05370963,132.25,132.22,7.61256215]
[1744502489715,0.05370963,132.25,132.22,0.04826215]
[1744502490316,0.05370963,132.25,132.23,7.17042549]
[1744502490515,0.05370963,132.25,132.22,0.04826215]
[1744502490712,0.05370963,132.25,132.24,7.5633]
[1744502493519,0.05370963,132.25,132.22,0.04826215]
[1744502493707,0.05370963,132.25,132.23,7.17588316]
[1744502493912,0.05370963,132.25,132.22,0.04826215]
[1744502494413,27.85370963,132.25,132.22,0.04826215]
[1744502495415,7.5639,132.23,132.22,0.04826215]
[1744502500625,7.5639,132.23,132.22,6.215e-05]
[1744502502124,7.5635,132.24,132.22,6.215e-05]
[1744502502616,7.5639,132.23,132.22,6.215e-05]
[1744502503624,27.85370963,132.25,132.22,6.215e-05]
[1744502504622,7.5635,132.24,132.22,6.215e-05]
[1744502506123,35.41660963,132.25,132.22,6.215e-05]
[1744502506419,35.41660963,132.25,132.22,7.56426215]
[1744502508019,7.5636,132.24,132.22,6.215e-05]
[1744502508219,27.85370963,132.25,132.22,6.215e-05]
[1744502508418,4.0228,132.23,132.22,6.215e-05]
[1744502508918,11.5867,132.23,132.22,6.215e-05]
[1744502509122,19.1467,132.23,132.22,6.215e-05]
[1744502509322,11.5867,132.23,132.22,6.215e-05]
[1744502509725,19.1467,132.23,132.22,6.215e-05]
[1744502509924,11.5867,132.23,132.22,6.215e-05]
[1744502510424,19.1467,132.23,132.22,6.215e-05]
[1744502510625,11.5867,132.23,132.22,6.215e-05]
[1744502511026,19.1467,132.23,132.22,6.215e-05]
[1744502511226,11.5867,132.23,132.22,6.215e-05]
[1744502514823,7.5639,132.23,132.22,6.215e-05]
[1744502525238,7.5635,132.24,132.22,6.215e-05]
[1744502525640,27.85370963,132.25,132.22,6.215e-05]
[1744502525839,7.5639,132.23,132.22,6.215e-05]
[1744502526542,27.85370963,132.25,132.22,6.215e-05]
[1744502526543,7.5635,132.24,132.22,6.215e-05]
[1744502526737,27.85370963,132.25,132.22,6.215e-05]
[1744502527545,27.85370963,132.25,132.22,7.56406215]
[1744502528544,35.41680963,132.25,132.22,6.215e-05]
[1744502529444,27.85370963,132.25,132.22,6.215e-05]
[1744502530051,7.5639,132.23,132.22,6.215e-05]
[1744502530547,7.5635,132.24,132.22,6.215e-05]
[1744502531246,7.5639,132.23,132.22,6.215e-05]
[1744502531744,27.85370963,132.25,132.22,6.215e-05]
[1744502532447,7.5637,132.24,132.22,6.215e-05]
[1744502533151,7.5639,132.23,132.22,6.215e-05]
[1744502549260,7.5635,132.24,132.22,6.215e-05]
[1744502549755,7.5639,132.23,132.22,6.215e-05]
[1744502549960,27.85370963,132.25,132.22,6.215e-05]
[1744502550465,7.5639,132.23,132.22,6.215e-05]
[1744502550666,27.85370963,132.25,132.22,6.215e-05]
[1744502551067,7.5636,132.24,132.22,6.215e-05]
[1744502551762,27.85370963,132.25,132.22,6.215e-05]
[1744502551964,0.05370963,132.25,132.22,6.215e-05]
[1744502552454,0.05370963,132.25,132.22,7.56416215]
[1744502552655,0.05370963,132.25,132.22,6.215e-05]
[1744502552970,7.5636,132.24,132.22,6.215e-05]
[1744502553168,0.05370963,132.25,132.22,6.215e-05]
[1744502553658,7.5637,132.24,132.22,6.215e-05]
[1744502554569,7.5639,132.23,132.22,6.215e-05]
[1744502555572,7.5635,132.24,132.22,6.215e-05]
[1744502555766,0.05370963,132.25,132.22,6.215e-05]
[1744502556572,7.61680963,132.25,132.22,7.56456215]
[1744502556761,0.05370963,132.25,132.22,6.215e-05]
[1744502557669,0.05370963,132.25,132.22,7.56416215]
[1744502558872,0.05370963,132.25,132.23,7.5638]
[1744502559370,0.05370963,132.25,132.24,7.5633]
[1744502562669,9.63e-06,132.25,132.24,7.5633]
[1744502562873,28.82,132.32,132.28,7.5606]
[1744502563275,28.82,132.32,132.25,32.8196]
[1744502563872,0.05469658,132.3,132.27,0.05605771]
[1744502564578,0.05469658,132.3,132.27,7.61735771]
[1744502565069,0.05469658,132.3,132.29,7.5605]
[1744502569277,0.05469658,132.3,132.27,0.05605771]
[1744502571279,7.5606,132.29,132.27,0.05605771]
[1744502571975,7.61479658,132.3,132.27,0.05605771]
[1744502573380,7.5605,132.29,132.27,0.05605771]
[1744502575084,7.61479658,132.3,132.27,0.05605771]
[1744502576382,7.61479658,132.3,132.27,7.61735771]
[1744502576784,0.05469658,132.3,132.27,0.05605771]
[1744502577384,7.561,132.28,132.27,0.05605771]
[1744502582684,7.561,132.28,132.22,4.1353]
[1744502582685,28.8,132.29,132.22,28.8]
[1744502582882,28.8,132.29,132.19,598.98]
[1744502582883,6.1986,132.28,132.19,627.78]
[1744502583283,6.1986,132.28,132.19,28.8]
[1744502583486,6.1986,132.28,132.18,7.5664]
[1744502583686,6.1986,132.28,132.17,34.855]
[1744502583687,0.05160456,132.25,132.17,34.855]
[1744502583886,28.8,132.24,132.18,7.5666]
[1744502584087,0.05706314,132.22,132.18,7.5666]
[1744502584289,7.62206314,132.22,132.18,7.5666]
[1744502584484,0.05706314,132.22,132.17,32.9158]
[1744502585089,0.05706314,132.22,132.21,7.565]
[1744502586690,0.05706314,132.22,132.2,7.5654]
[1744502587689,0.05706314,132.22,132.19,7.566]
[1744502587893,0.05706314,132.22,132.17,32.9158]
[1744502588487,0.05706314,132.22,132.17,40.4827]
[1744502589395,0.05706314,132.22,132.17,32.9158]
[1744502589894,0.05706314,132.22,132.19,7.5659]
[1744502591188,0.05706314,132.22,132.2,7.5655]
[1744502592999,0.05706314,132.22,132.17,32.9158]
[1744502593199,0.05706314,132.22,132.17,30.9085]
[1744502593797,7.5653,132.21,132.18,7.5664]
[1744502593997,0.05706314,132.22,132.18,7.5664]
[1744502594195,0.05706314,132.22,132.15,1.9392]
[1744502594395,7.5658,132.2,132.16,7.5675]
[1744502594601,1.9919,132.23,132.14,28.88]
[1744502594899,0.04931169,132.19,132.14,28.88]
[1744502595201,0.04931169,132.19,132.17,7.5669]
[1744502597000,0.04931169,132.19,132.18,7.5668]
[1744502599603,28.82,132.24,132.21,7.5645]
[1744502600101,28.82,132.24,132.18,28.88]
[1744502600497,7.5642,132.23,132.18,28.88]
[1744502600704,0.04779988,132.22,132.2,0.05392168]
[1744502601405,0.04779988,132.22,132.21,7.5649]
[1744502602703,2.1454,132.27,132.24,7.5631]
[1744502602902,9.7074,132.27,132.21,28.88]
[1744502603102,2.1454,132.27,132.21,28.88]
[1744502603602,2.1454,132.27,132.23,7.5636]
[1744502603802,0.050099,132.25,132.23,7.61133883]
[1744502604209,0.050099,132.25,132.23,0.04773883]
[1744502606206,7.612899,132.25,132.23,0.04773883]
[1744502606512,0.050099,132.25,132.23,0.04773883]
[1744502606914,7.613099,132.25,132.23,0.04773883]
[1744502609918,0.050099,132.25,132.23,0.04773883]
[1744502610213,0.050099,132.25,132.23,7.61143883]
[1744502610415,0.050099,132.25,132.23,0.04773883]
[1744502611314,0.050099,132.25,132.24,7.5633]
[1744502619224,28.88,132.34,132.24,31.91944906]
[1744502619417,28.88,132.34,132.25,7.09454906]
[1744502619621,7.5583,132.33,132.25,4.0551]
[1744502620323,0.04827597,132.3,132.28,0.05428315]
[1744502620717,0.04827597,132.3,132.29,7.5599]
[1744502623025,0.04827597,132.3,132.28,7.61508315]
[1744502624823,0.04827597,132.3,132.29,7.5605]
[1744502636440,28.88,132.34,132.28,0.05428315]
[1744502636640,11.5186,132.36,132.28,0.05428315]
[1744502636837,11.5186,132.36,132.27,28.88]
[1744502637142,11.5186,132.36,132.32,7.5583]
[1744502637340,11.5186,132.36,132.27,28.88]
[1744502637538,3.9617,132.36,132.27,28.88]
[1744502637839,0.04986301,132.33,132.3,0.05403293]
[1744502638035,0.04986301,132.33,132.31,28.98]
[1744502638444,0.04986301,132.33,132.32,7.5587]
[1744502639138,30.9149,132.39,132.36,7.556]
[1744502640132,1.98761674,132.39,132.36,7.61326132]
[1744502640334,9.54251674,132.39,132.36,7.61326132]
[1744502640531,1.98761674,132.39,132.36,0.05726132]
[1744502641142,7.5557,132.38,132.36,0.05726132]
[1744502641944,7.5559,132.37,132.36,0.05726132]
[1744502645850,7.56,132.37,132.29,28.98]
[1744502646043,28.98,132.38,132.28,606.2006]
[1744502646044,4.0127,132.36,132.28,606.2006]
[1744502646244,7.5591,132.32,132.28,606.2006]
[1744502646443,7.5591,132.32,132.28,7.5606]
[1744502646644,7.5586,132.33,132.29,7.5601]
[1744502646845,0.05681456,132.31,132.29,7.60844829]
[1744502647045,4.0127,132.36,132.29,7.60844829]
[1744502647245,0.05357974,132.31,132.29,7.60844829]
[1744502647446,4.0127,132.36,132.3,7.5599]
[1744502647646,0.0519092,132.31,132.3,7.5599]
[1744502647950,1.9349,132.39,132.27,28.98]
[1744502647951,1.9349,132.39,132.35,7.5566]
[1744502648352,0.05491544,132.38,132.33,28.98]
[1744502648552,0.05491544,132.38,132.36,0.051134]
[1744502648852,7.61071544,132.38,132.36,0.051134]
[1744502653963,0.05491544,132.38,132.36,0.051134]
[1744502654966,0.05491544,132.38,132.36,7.607234]
[1744502656866,0.05491544,132.38,132.36,0.051134]
[1744502657663,7.61041544,132.38,132.36,0.051134]
[1744502658162,0.05491544,132.38,132.36,0.051134]
[1744502659964,0.05491544,132.38,132.36,7.607434]
[1744502660367,0.05491544,132.38,132.36,0.051134]
[1744502660569,0.05491544,132.38,132.36,28.691134]
[1744502660869,0.05491544,132.38,132.37,7.19276569]
[1744502661362,0.05491544,132.38,132.37,14.74866569]
[1744502664165,28.62,132.45,132.37,14.74866569]
[1744502664370,6.0423,132.46,132.38,7.19276569]
[1744502664567,6.0423,132.46,132.39,35.81305956]
[1744502664772,7.5517,132.45,132.39,28.62]
[1744502664969,7.5517,132.45,132.42,7.553]
[1744502665372,7.59977653,132.45,132.42,7.60539545]
[1744502666369,0.04807653,132.45,132.43,7.5523]
[1744502666969,0.04807653,132.45,132.44,7.5519]
[1744502667181,28.62,132.51,132.42,28.67239545]
[1744502667381,28.62,132.51,132.43,7.17878841]
[1744502667679,28.62,132.51,132.46,7.5504]
[1744502668075,7.5488,132.5,132.47,7.55]
[1744502668378,7.59837529,132.5,132.47,7.60272879]
[1744502668673,0.04957529,132.5,132.48,7.5493]
[1744502668978,0.04957529,132.5,132.47,0.05272879]
[1744502669378,0.04957529,132.5,132.49,7.549]
[1744502671776,0.04957529,132.5,132.48,36.1694]
[1744502675183,0.04957529,132.5,132.49,7.549]
[1744502677686,7.5458,132.55,132.48,28.62]
[1744502678482,9.6455,132.56,132.48,28.62]
[1744502678885,0.05255532,132.53,132.52,7.5473]
[1744502680584,0.05255532,132.53,132.51,28.65580857]
[1744502680783,0.05255532,132.53,132.51,0.05580857]
[1744502681486,7.59985532,132.53,132.51,0.05580857]
[1744502681681,0.05255532,132.53,132.51,0.05580857]
[1744502682087,0.05255532,132.53,132.52,7.5473]
[1744502682788,0.05255532,132.53,132.51,0.05580857]
[1744502684689,0.05255532,132.53,132.51,7.60370857]
[1744502688591,0.05255532,132.53,132.52,7.5473]
[1744502689193,0.05255532,132.53,132.52,35.7273]
[1744502690890,0.05255532,132.53,132.52,7.5473]
[1744502691098,0.05255532,132.53,132.52,35.7273]
[1744502691396,1.9864,132.59,132.53,7.5465]
[1744502691598,7.5446,132.57,132.53,7.5465]
[1744502692297,7.5451,132.56,132.52,35.7271]
[1744502692492,7.5451,132.56,132.52,28.18]
[1744502692697,0.05695192,132.55,132.53,0.05272666]
[1744502692898,0.05695192,132.55,132.53,7.59912666]
[1744502693094,0.05695192,132.55,132.53,0.05272666]
[1744502693501,0.05695192,132.55,132.54,7.5462]
[1744502697103,0.05695192,132.55,132.53,7.59912666]
[1744502697802,0.05695192,132.55,132.54,7.5462]
[1744502700308,0.05695192,132.55,132.53,7.59932666]
[1744502700606,0.05695192,132.55,132.53,0.05272666]
[1744502702011,0.05695192,132.55,132.53,7.59932666]
[1744502702207,0.05695192,132.55,132.53,0.05272666]
[1744502703311,0.05695192,132.55,132.53,28.21272666]
[1744502703512,0.05695192,132.55,132.54,7.5462]
[1744502708408,0.05695192,132.55,132.53,7.59942666]
[1744502708610,0.05695192,132.55,132.49,63.61083496]
[1744502708808,7.5478,132.52,132.49,37.02270876]
[1744502709215,7.5478,132.52,132.5,7.17124286]
[1744502709414,7.5478,132.52,132.49,37.02270876]
[1744502709711,7.5478,132.52,132.5,7.17052078]
[1744502709907,0.05002321,132.52,132.49,8.91189602]
[1744502710106,0.05002321,132.52,132.5,7.17056958]
[1744502710305,0.05002321,132.52,132.49,8.91189602]
[1744502710510,0.05002321,132.52,132.5,14.72522763]
[1744502710705,0.05002321,132.52,132.5,7.5482]
[1744502711102,0.05002321,132.52,132.49,7.59818726]
[1744502711304,0.05002321,132.52,132.5,7.18565612]
[1744502711514,0.05002321,132.52,132.51,7.18565612]
[1744502714016,7.59732321,132.52,132.51,7.18565612]
[1744502714209,7.59732321,132.52,132.49,0.04918726]
[1744502714210,0.05002321,132.52,132.49,0.04918726]
[1744502714610,7.5482,132.51,132.49,0.04918726]
[1744502715009,0.05002321,132.52,132.49,0.04918726]
[1744502715215,0.05002321,132.52,132.5,7.19786878]
[1744502715416,0.05002321,132.52,132.49,0.04918726]
[1744502715920,0.05002321,132.52,132.5,7.19951363]
[1744502716113,0.05002321,132.52,132.49,0.04918726]
[1744502716314,0.05002321,132.52,132.5,7.20053506]
[1744502716514,0.05002321,132.52,132.49,0.04918726]
[1744502716814,0.05002321,132.52,132.5,7.20038303]
[1744502717014,0.05002321,132.52,132.49,0.04918726]
[1744502717015,7.59772321,132.52,132.49,7.59818726]
[1744502717315,7.59772321,132.52,132.5,7.19994377]
[1744502717514,7.59772321,132.52,132.49,0.04918726]
[1744502717713,7.5479,132.51,132.5,7.20068386]
[1744502720822,0.05002321,132.52,132.5,7.20068386]
[1744502721022,0.05002321,132.52,132.49,7.59788726]
[1744502721223,0.05002321,132.52,132.5,7.2007006]
[1744502721425,0.05002321,132.52,132.51,7.2007006]
[1744502722022,0.05002321,132.52,132.51,14.7486006]
[1744502722921,0.05002321,132.52,132.51,14.74459563]
[1744502723425,0.05002321,132.52,132.51,7.19669563]
[1744502727921,7.59732321,132.52,132.51,7.19669563]
[1744502728228,0.05002321,132.52,132.51,7.19669563]
[1744502728623,0.05002321,132.52,132.51,14.74459563]
[1744502728928,0.05002321,132.52,132.51,14.74094169]
[1744502729129,0.05002321,132.52,132.51,7.19304169]
[1744502729826,0.05002321,132.52,132.51,14.74094169]
[1744502730023,1.9479,132.56,132.51,7.19304169]
[1744502730323,4.0524,132.58,132.52,35.17304169]
[1744502730625,6.1142,132.58,132.53,7.19304169]
[1744502730828,7.546,132.55,132.51,7.5477]
[1744502731129,7.546,132.55,132.52,7.18886906]
[1744502731327,0.05200064,132.54,132.53,7.18886906]
[1744502731526,7.59820064,132.54,132.53,7.18886906]
[1744502731926,7.59820064,132.54,132.52,0.05027152]
[1744502734631,7.59820064,132.54,132.53,7.19611294]
[1744502734821,0.05200064,132.54,132.53,7.19611294]
[1744502736032,0.05200064,132.54,132.52,0.05027152]
[1744502736533,7.5468,132.53,132.52,0.05027152]
[1744502736736,7.5468,132.53,132.52,7.24678529]
[1744502736925,0.05200064,132.54,132.52,7.24678529]
[1744502737130,0.05200064,132.54,132.52,0.05027152]
[1744502737331,7.59850064,132.54,132.52,0.05027152]
[1744502737532,7.59850064,132.54,132.53,7.19750903]
[1744502738233,7.59850064,132.54,132.52,0.05027152]
[1744502738533,7.59850064,132.54,132.53,7.19676376]
[1744502738833,7.5468,132.53,132.52,0.05027152]
[1744502741033,7.5468,132.53,132.52,7.24965677]
[1744502741232,0.05200064,132.54,132.52,7.24965677]
[1744502741434,0.05200064,132.54,132.53,7.19938525]
[1744502741732,0.05200064,132.54,132.53,7.19924992]
[1744502743435,0.05200064,132.54,132.53,14.74604992]
[1744502745837,0.05200064,132.54,132.53,14.74550895]
[1744502750842,0.05200064,132.54,132.53,7.19870895]
[1744502751538,27.68,132.6,132.53,37.91914981]
[1744502751742,27.68,132.6,132.54,7.20248133]
[1744502751943,27.68,132.6,132.55,7.20248133]
[1744502752142,7.5438,132.59,132.56,14.74748133]
[1744502752342,7.5438,132.59,132.57,7.20248133]
[1744502752642,7.5438,132.59,132.56,7.545]
[1744502752839,7.59958849,132.59,132.57,7.24872081]
[1744502753042,7.59958849,132.59,132.57,0.05011481]
[1744502754743,0.05578849,132.59,132.57,7.59451481]
[1744502758249,7.59918849,132.59,132.57,7.59451481]
[1744502758646,7.59918849,132.59,132.57,0.05011481]
[1744502760648,0.05578849,132.59,132.57,7.59461481]
[1744502761052,0.05578849,132.59,132.57,0.05011481]
[1744502761746,7.59928849,132.59,132.57,0.05011481]
[1744502762053,0.05578849,132.59,132.57,0.05011481]
[1744502762255,7.5461,132.55,132.53,6.4]
[1744502762454,31.7031,132.58,132.53,6.4]
[1744502762657,31.7031,132.58,132.5,35.2282]
[1744502762854,7.5462,132.54,132.51,7.20130774]
[1744502763046,7.5462,132.54,132.52,7.20130774]
[1744502763251,31.7031,132.58,132.53,7.20130774]
[1744502763451,31.7031,132.58,132.52,0.05786362]
[1744502763650,0.04887613,132.55,132.53,7.20336115]
[1744502763850,7.59487613,132.55,132.52,0.05786362]
[1744502764056,7.59487613,132.55,132.53,7.20381902]
[1744502764253,7.59487613,132.55,132.52,0.05786362]
[1744502764453,7.59487613,132.55,132.53,7.20459524]
[1744502764752,7.59487613,132.55,132.52,0.05786362]
[1744502764952,7.59487613,132.55,132.53,7.20539934]
[1744502765153,27.72887613,132.55,132.52,0.05786362]
[1744502765757,7.5468,132.53,132.52,0.05786362]